[Event "Late-Titled-Tuesday-Blitz-September-19-2023"]
[Site "Chess.com"]
[Date "2023.09.19"]
[Round "11"]
[White "WPWPWP-2015"]
[Black "Alexei_Gubajdullin"]
[Result "0-1"]
[WhiteElo "2544"]
[BlackElo "2649"]
[TimeControl "180+1"]
[EndTime "16:06:05 PDT"]
[Termination "Alexei_Gubajdullin won by checkmate"]

1. e4 {[%clk 0:02:56.6]} 1... g6 {[%clk 0:02:59.2]} 2. d4 {[%clk 0:02:55.9]}
2... d6 {[%clk 0:02:59.4]} 3. Nc3 {[%clk 0:02:55.9]} 3... Bg7 {[%clk 0:02:58.5]}
4. Nf3 {[%clk 0:02:55.3]} 4... Nf6 {[%clk 0:02:53.7]} 5. Be2 {[%clk 0:02:54.4]}
5... O-O {[%clk 0:02:53.5]} 6. O-O {[%clk 0:02:54.3]} 6... a6 {[%clk 0:02:53.9]}
7. a4 {[%clk 0:02:53.9]} 7... b6 {[%clk 0:02:53.7]} 8. Re1 {[%clk 0:02:53.2]}
8... e6 {[%clk 0:02:53.7]} 9. h3 {[%clk 0:02:52.6]} 9... Nc6 {[%clk 0:02:53.7]}
10. Bg5 {[%clk 0:02:51.3]} 10... h6 {[%clk 0:02:52.1]} 11. Bh4 {[%clk
0:02:51.3]} 11... Bb7 {[%clk 0:02:47.2]} 12. Qd2 {[%clk 0:02:50.8]} 12... Nb4
{[%clk 0:02:38.4]} 13. Bf1 {[%clk 0:02:44.3]} 13... c5 {[%clk 0:02:30.1]} 14.
Rad1 {[%clk 0:02:39.4]} 14... cxd4 {[%clk 0:02:26.2]} 15. Nxd4 {[%clk
0:02:38.9]} 15... Qc7 {[%clk 0:02:25.8]} 16. Nf3 {[%clk 0:02:30.2]} 16... Rfd8
{[%clk 0:02:14.5]} 17. Bg3 {[%clk 0:02:12.6]} 17... Ne8 {[%clk 0:02:06.8]} 18.
Nd4 {[%clk 0:02:07.6]} 18... Rac8 {[%clk 0:01:45.8]} 19. Re2 {[%clk 0:01:44.4]}
19... Qc5 {[%clk 0:01:29.5]} 20. Kh1 {[%clk 0:01:26.5]} 20... Qh5 {[%clk
0:01:21.8]} 21. f4 {[%clk 0:00:58.9]} 21... e5 {[%clk 0:01:17.6]} 22. Nf3 {[%clk
0:00:53.6]} 22... d5 {[%clk 0:01:13.6]} 23. Nxe5 {[%clk 0:00:42.5]} 23... d4
{[%clk 0:01:04.3]} 24. Nd5 {[%clk 0:00:38.1]} 24... Nxd5 {[%clk 0:00:59.6]} 25.
exd5 {[%clk 0:00:35.7]} 25... Bxd5 {[%clk 0:00:57.3]} 26. Kh2 {[%clk 0:00:31.5]}
26... Nf6 {[%clk 0:00:55.5]} 27. Qxd4 {[%clk 0:00:26]} 27... Ng4+ {[%clk
0:00:46.2]} 28. Kg1 {[%clk 0:00:24.3]} 28... Nxe5 {[%clk 0:00:45.9]} 29. fxe5
{[%clk 0:00:21.7]} 29... Bf8 {[%clk 0:00:46]} 30. Kh2 {[%clk 0:00:20.2]} 30...
Bf3 {[%clk 0:00:43]} 31. Qxd8 {[%clk 0:00:12.8]} 31... Rxd8 {[%clk 0:00:42.9]}
32. Rxd8 {[%clk 0:00:12.4]} 32... Bxe2 {[%clk 0:00:42.8]} 33. Bxe2 {[%clk
0:00:12.6]} 33... Qxe2 {[%clk 0:00:42.4]} 34. b4 {[%clk 0:00:05.6]} 34... Kg7
{[%clk 0:00:40.4]} 35. c3 {[%clk 0:00:03.2]} 35... a5 {[%clk 0:00:39.5]} 36.
bxa5 {[%clk 0:00:03.1]} 36... bxa5 {[%clk 0:00:39.6]} 37. e6 {[%clk 0:00:03.4]}
37... Qxe6 {[%clk 0:00:38.7]} 38. Ra8 {[%clk 0:00:03]} 38... Qd5 {[%clk
0:00:35.4]} 39. Ra6 {[%clk 0:00:02.8]} 39... Be7 {[%clk 0:00:31.7]} 40. Rb6
{[%clk 0:00:03.1]} 40... Bf6 {[%clk 0:00:31.2]} 41. Rb5 {[%clk 0:00:03.6]} 41...
Qc4 {[%clk 0:00:29.6]} 42. Rxa5 {[%clk 0:00:03.7]} 42... Bxc3 {[%clk 0:00:28.5]}
43. Rb5 {[%clk 0:00:03.7]} 43... Qxa4 {[%clk 0:00:27.7]} 44. Rc5 {[%clk
0:00:04.1]} 44... Bf6 {[%clk 0:00:27.3]} 45. Rd5 {[%clk 0:00:04.3]} 45... h5
{[%clk 0:00:27]} 46. Rc5 {[%clk 0:00:03.5]} 46... h4 {[%clk 0:00:26.8]} 47. Bd6
{[%clk 0:00:03.7]} 47... Qd4 {[%clk 0:00:26.4]} 48. Rc6 {[%clk 0:00:03.3]} 48...
Qd5 {[%clk 0:00:26.5]} 49. Ra6 {[%clk 0:00:03]} 49... Bd4 {[%clk 0:00:22.2]} 50.
Bf4 {[%clk 0:00:02.6]} 50... Qe4 {[%clk 0:00:21.7]} 51. Bd2 {[%clk 0:00:02.2]}
51... Qe2 {[%clk 0:00:21.4]} 52. Ra2 {[%clk 0:00:01.9]} 52... Qf1 {[%clk
0:00:21.4]} 53. Bh6+ {[%clk 0:00:01.4]} 53... Kxh6 {[%clk 0:00:20.8]} 54. Rf2
{[%clk 0:00:01.7]} 54... Bxf2 {[%clk 0:00:20.1]} 55. g4 {[%clk 0:00:02]} 55...
hxg3# {[%clk 0:00:20.4]} 0-1

[Event "Late-Titled-Tuesday-Blitz-September-19-2023"]
[Site "Chess.com"]
[Date "2023.09.19"]
[Round "11"]
[White "Verony64"]
[Black "KorolDimitriy75"]
[Result "1-0"]
[WhiteElo "2298"]
[BlackElo "2361"]
[TimeControl "180+1"]
[EndTime "16:06:06 PDT"]
[Termination "Verony64 won by checkmate"]

1. e4 {[%clk 0:03:00.9]} 1... c5 {[%clk 0:03:00]} 2. Nc3 {[%clk 0:03:00.9]} 2...
g6 {[%clk 0:02:59.8]} 3. d3 {[%clk 0:03:01.4]} 3... Bg7 {[%clk 0:03:00.4]} 4. g3
{[%clk 0:03:01.2]} 4... Nc6 {[%clk 0:03:00.6]} 5. Bg2 {[%clk 0:02:59.9]} 5... d6
{[%clk 0:03:00.8]} 6. f4 {[%clk 0:02:59.9]} 6... e5 {[%clk 0:03:00.6]} 7. Nf3
{[%clk 0:03:00]} 7... Nd4 {[%clk 0:03:00.9]} 8. O-O {[%clk 0:02:59.4]} 8... Bg4
{[%clk 0:02:41.1]} 9. Be3 {[%clk 0:02:55.2]} 9... Qd7 {[%clk 0:02:35.8]} 10. Ne2
{[%clk 0:02:48.3]} 10... Ne7 {[%clk 0:02:24.5]} 11. c3 {[%clk 0:02:47.7]} 11...
Nxe2+ {[%clk 0:02:12.6]} 12. Qxe2 {[%clk 0:02:46.9]} 12... O-O {[%clk
0:02:12.6]} 13. Qd2 {[%clk 0:02:41.4]} 13... b6 {[%clk 0:01:53.9]} 14. Rae1
{[%clk 0:02:24.4]} 14... Rae8 {[%clk 0:01:33.5]} 15. Kh1 {[%clk 0:02:09]} 15...
Bh3 {[%clk 0:01:21.7]} 16. Ng5 {[%clk 0:02:03.5]} 16... Bxg2+ {[%clk 0:01:20.8]}
17. Qxg2 {[%clk 0:02:04.4]} 17... h6 {[%clk 0:01:15.1]} 18. Nf3 {[%clk
0:02:01.6]} 18... f5 {[%clk 0:01:09.5]} 19. Qh3 {[%clk 0:01:47.9]} 19... Qb5
{[%clk 0:00:38.4]} 20. fxe5 {[%clk 0:01:19.4]} 20... dxe5 {[%clk 0:00:37.8]} 21.
Bxh6 {[%clk 0:01:15.5]} 21... Rf7 {[%clk 0:00:14.3]} 22. Ng5 {[%clk 0:01:10.4]}
22... Bxh6 {[%clk 0:00:12.4]} 23. Nxf7 {[%clk 0:01:01.3]} 23... Kxf7 {[%clk
0:00:12.4]} 24. Qxh6 {[%clk 0:01:00.5]} 24... Qxd3 {[%clk 0:00:12.4]} 25. Qh7+
{[%clk 0:00:55.4]} 25... Kf6 {[%clk 0:00:11.8]} 26. Qh4+ {[%clk 0:00:48.9]}
26... Kg7 {[%clk 0:00:10.1]} 27. Qg5 {[%clk 0:00:41.8]} 27... Qd6 {[%clk
0:00:06]} 28. exf5 {[%clk 0:00:39.9]} 28... Qc6+ {[%clk 0:00:05.6]} 29. Kg1
{[%clk 0:00:39.3]} 29... Qf6 {[%clk 0:00:04.9]} 30. Qxf6+ {[%clk 0:00:32.4]}
30... Kxf6 {[%clk 0:00:05.8]} 31. fxg6+ {[%clk 0:00:32.7]} 31... Ke6 {[%clk
0:00:05.4]} 32. g7 {[%clk 0:00:26.7]} 32... Rg8 {[%clk 0:00:05.5]} 33. Rf8
{[%clk 0:00:18.3]} 33... Rxg7 {[%clk 0:00:05.7]} 34. Ra8 {[%clk 0:00:16.7]}
34... Nc6 {[%clk 0:00:05.8]} 35. Re8+ {[%clk 0:00:16.4]} 35... Kd6 {[%clk
0:00:05.7]} 36. Kg2 {[%clk 0:00:15.2]} 36... Kd7 {[%clk 0:00:05.9]} 37. Rf8
{[%clk 0:00:14.8]} 37... Kd6 {[%clk 0:00:05.7]} 38. h4 {[%clk 0:00:14.2]} 38...
Kd5 {[%clk 0:00:05]} 39. h5 {[%clk 0:00:13.4]} 39... a5 {[%clk 0:00:04.6]} 40.
h6 {[%clk 0:00:12.2]} 40... Rh7 {[%clk 0:00:04.7]} 41. Rf6 {[%clk 0:00:11.5]}
41... e4 {[%clk 0:00:04.9]} 42. g4 {[%clk 0:00:09.5]} 42... Ne5 {[%clk
0:00:04.9]} 43. g5 {[%clk 0:00:08.6]} 43... Ng4 {[%clk 0:00:04.8]} 44. Rf5+
{[%clk 0:00:08.5]} 44... Ke6 {[%clk 0:00:05]} 45. Rf4 {[%clk 0:00:08.3]} 45...
e3 {[%clk 0:00:05.1]} 46. Rxg4 {[%clk 0:00:07.9]} 46... Kf5 {[%clk 0:00:05]} 47.
Rg3 {[%clk 0:00:07.8]} 47... Rh8 {[%clk 0:00:05]} 48. Rexe3 {[%clk 0:00:08.1]}
48... Rg8 {[%clk 0:00:05.5]} 49. Ref3+ {[%clk 0:00:08.2]} 49... Kg6 {[%clk
0:00:06.4]} 50. Rg4 {[%clk 0:00:08]} 50... Rd8 {[%clk 0:00:06]} 51. Kg3 {[%clk
0:00:08.9]} 51... Rd2 {[%clk 0:00:06.3]} 52. Rgf4 {[%clk 0:00:09.2]} 52... Rd1
{[%clk 0:00:06.7]} 53. Rf6+ {[%clk 0:00:09.5]} 53... Kxg5 {[%clk 0:00:07.2]} 54.
Rf7 {[%clk 0:00:10.4]} 54... Rg1+ {[%clk 0:00:06.6]} 55. Kf2 {[%clk 0:00:11.3]}
55... Rb1 {[%clk 0:00:06.9]} 56. Rg3+ {[%clk 0:00:11.5]} 56... Kxh6 {[%clk
0:00:06.8]} 57. Rf8 {[%clk 0:00:12.4]} 57... Rxb2+ {[%clk 0:00:06.3]} 58. Kf3
{[%clk 0:00:11.3]} 58... Rxa2 {[%clk 0:00:07.2]} 59. Rh8# {[%clk 0:00:11.1]} 1-0

[Event "Late-Titled-Tuesday-Blitz-September-19-2023"]
[Site "Chess.com"]
[Date "2023.09.19"]
[Round "11"]
[White "Zhigalko_Sergei"]
[Black "Alphafischer2019"]
[Result "1-0"]
[WhiteElo "2834"]
[BlackElo "2631"]
[TimeControl "180+1"]
[EndTime "16:06:10 PDT"]
[Termination "Zhigalko_Sergei won by resignation"]

1. e4 {[%clk 0:03:00.9]} 1... c5 {[%clk 0:02:59.8]} 2. Nf3 {[%clk 0:03:00.7]}
2... Nc6 {[%clk 0:02:59.7]} 3. c3 {[%clk 0:03:01.1]} 3... Nf6 {[%clk 0:02:59.4]}
4. e5 {[%clk 0:03:01.4]} 4... Nd5 {[%clk 0:03:00.1]} 5. Bc4 {[%clk 0:03:02.1]}
5... Nb6 {[%clk 0:02:59.8]} 6. Bb3 {[%clk 0:03:02.6]} 6... d5 {[%clk 0:02:57.9]}
7. exd6 {[%clk 0:03:03.5]} 7... Qxd6 {[%clk 0:02:58]} 8. O-O {[%clk 0:03:03.2]}
8... c4 {[%clk 0:02:58.6]} 9. Bc2 {[%clk 0:03:03.3]} 9... g6 {[%clk 0:02:53.2]}
10. b3 {[%clk 0:02:59.8]} 10... Bg7 {[%clk 0:02:49.2]} 11. Na3 {[%clk
0:02:58.8]} 11... cxb3 {[%clk 0:02:48.3]} 12. axb3 {[%clk 0:02:59.7]} 12... O-O
{[%clk 0:02:47.2]} 13. Nc4 {[%clk 0:02:54.6]} 13... Nxc4 {[%clk 0:02:44.6]} 14.
bxc4 {[%clk 0:02:55.5]} 14... Rd8 {[%clk 0:02:35.7]} 15. d4 {[%clk 0:02:55.5]}
15... Qc7 {[%clk 0:02:29.1]} 16. Bg5 {[%clk 0:02:47.4]} 16... h6 {[%clk
0:02:28.2]} 17. Bh4 {[%clk 0:02:47.2]} 17... b6 {[%clk 0:02:25.1]} 18. Re1
{[%clk 0:02:45.4]} 18... Bb7 {[%clk 0:02:08.1]} 19. Qb1 {[%clk 0:02:24.3]} 19...
Re8 {[%clk 0:01:57.4]} 20. Bg3 {[%clk 0:02:20]} 20... Qc8 {[%clk 0:01:55.3]} 21.
Ba4 {[%clk 0:02:19.2]} 21... e6 {[%clk 0:01:54.6]} 22. d5 {[%clk 0:02:12.2]}
22... Na5 {[%clk 0:01:35.9]} 23. Bxe8 {[%clk 0:02:11.1]} 23... Qxe8 {[%clk
0:01:36.8]} 24. Rxa5 {[%clk 0:02:10.1]} 24... Bxc3 {[%clk 0:01:34.7]} 25. Ra3
{[%clk 0:02:01.9]} 25... Bxe1 {[%clk 0:01:31.7]} 26. Qxe1 {[%clk 0:02:02.8]}
26... exd5 {[%clk 0:01:32]} 27. Re3 {[%clk 0:01:29.7]} 27... Qc8 {[%clk
0:01:30.6]} 28. cxd5 {[%clk 0:01:11.5]} 28... Bxd5 {[%clk 0:01:31.5]} 29. h3
{[%clk 0:01:06.8]} 29... Qb7 {[%clk 0:01:30.5]} 30. Be5 {[%clk 0:01:03]} 30...
a5 {[%clk 0:01:21.4]} 31. Ba1 {[%clk 0:00:58.4]} 31... Qc6 {[%clk 0:01:14]} 32.
Ne5 {[%clk 0:00:56]} 32... Qc7 {[%clk 0:01:09.9]} 33. Ng4 {[%clk 0:00:54.3]}
33... Qc6 {[%clk 0:01:04.6]} 34. Nxh6+ {[%clk 0:00:21.3]} 34... Kh7 {[%clk
0:01:03.7]} 35. Ng4 {[%clk 0:00:19.3]} 35... Be6 {[%clk 0:01:02.8]} 36. Nf6+
{[%clk 0:00:18.1]} 36... Kh6 {[%clk 0:01:03.4]} 37. Qd2 {[%clk 0:00:14.9]} 37...
Kg7 {[%clk 0:01:00]} 38. Rg3 {[%clk 0:00:10]} 38... Rc8 {[%clk 0:00:55.7]} 39.
Kh2 {[%clk 0:00:09.5]} 39... Qc1 {[%clk 0:00:53.7]} 40. Qd4 {[%clk 0:00:07.5]}
40... Kf8 {[%clk 0:00:51.8]} 41. Ne4 {[%clk 0:00:04.6]} 41... Qc7 {[%clk
0:00:47.4]} 42. Qh8+ {[%clk 0:00:03.2]} 42... Ke7 {[%clk 0:00:47.9]} 43. Qf6+
{[%clk 0:00:03.7]} 43... Kd7 {[%clk 0:00:45.5]} 44. Be5 {[%clk 0:00:04.6]} 44...
Qc2 {[%clk 0:00:42.6]} 45. Nd6 {[%clk 0:00:04]} 45... Re8 {[%clk 0:00:24.8]} 46.
Nxe8 {[%clk 0:00:03.8]} 46... Kxe8 {[%clk 0:00:25.4]} 47. Bd6 {[%clk 0:00:03.5]}
47... Kd7 {[%clk 0:00:20.5]} 48. Rc3 {[%clk 0:00:03.3]} 48... Qxc3 {[%clk
0:00:19.7]} 49. Qxc3 {[%clk 0:00:04.2]} 49... Kxd6 {[%clk 0:00:20.2]} 50. g4
{[%clk 0:00:04]} 50... a4 {[%clk 0:00:15.8]} 51. Qb4+ {[%clk 0:00:03.4]} 51...
Kc7 {[%clk 0:00:15.3]} 52. Kg3 {[%clk 0:00:04.3]} 52... Bb3 {[%clk 0:00:14.5]}
53. h4 {[%clk 0:00:04.2]} 53... Kc6 {[%clk 0:00:14.8]} 54. h5 {[%clk 0:00:04.4]}
54... gxh5 {[%clk 0:00:15.7]} 55. gxh5 {[%clk 0:00:05.3]} 55... b5 {[%clk
0:00:14.7]} 56. h6 {[%clk 0:00:05.5]} 56... Bc2 {[%clk 0:00:14]} 57. Qc3+ {[%clk
0:00:05.5]} 1-0

[Event "Late-Titled-Tuesday-Blitz-September-19-2023"]
[Site "Chess.com"]
[Date "2023.09.19"]
[Round "11"]
[White "Msb2"]
[Black "Beca95"]
[Result "0-1"]
[WhiteElo "3084"]
[BlackElo "2876"]
[TimeControl "180+1"]
[EndTime "16:06:11 PDT"]
[Termination "Beca95 won by checkmate"]

1. d4 {[%clk 0:02:55.5]} 1... Nf6 {[%clk 0:02:59.3]} 2. c4 {[%clk 0:02:56]} 2...
c5 {[%clk 0:02:59.5]} 3. d5 {[%clk 0:02:56.4]} 3... e6 {[%clk 0:03:00]} 4. Nc3
{[%clk 0:02:57]} 4... exd5 {[%clk 0:03:00.4]} 5. cxd5 {[%clk 0:02:57.9]} 5... d6
{[%clk 0:03:00.7]} 6. e4 {[%clk 0:02:58.2]} 6... g6 {[%clk 0:03:01.1]} 7. h3
{[%clk 0:02:58.9]} 7... Bg7 {[%clk 0:03:01]} 8. Nf3 {[%clk 0:02:59.7]} 8... O-O
{[%clk 0:03:00.9]} 9. Bd3 {[%clk 0:03:00.5]} 9... b5 {[%clk 0:03:00.1]} 10. Nxb5
{[%clk 0:03:00.9]} 10... Re8 {[%clk 0:02:59.8]} 11. O-O {[%clk 0:03:00.1]} 11...
Nxe4 {[%clk 0:02:59.7]} 12. Re1 {[%clk 0:03:00.6]} 12... a6 {[%clk 0:02:59.1]}
13. Nc3 {[%clk 0:02:59.1]} 13... Nxc3 {[%clk 0:02:58.7]} 14. Rxe8+ {[%clk
0:02:55.7]} 14... Qxe8 {[%clk 0:02:57.8]} 15. bxc3 {[%clk 0:02:56.6]} 15... Bxc3
{[%clk 0:02:57.3]} 16. Rb1 {[%clk 0:02:57.3]} 16... Nd7 {[%clk 0:02:57.2]} 17.
Ng5 {[%clk 0:02:07.4]} 17... Nf6 {[%clk 0:02:46.6]} 18. Bf4 {[%clk 0:02:07.3]}
18... Be5 {[%clk 0:02:44.2]} 19. Qf3 {[%clk 0:02:04.2]} 19... Bxf4 {[%clk
0:02:16.2]} 20. Qxf4 {[%clk 0:02:05.1]} 20... Qe7 {[%clk 0:02:16]} 21. Kf1
{[%clk 0:01:36.6]} 21... Kg7 {[%clk 0:02:08.2]} 22. Re1 {[%clk 0:01:34.7]} 22...
Qd8 {[%clk 0:02:07.6]} 23. Qh4 {[%clk 0:01:29.3]} 23... h6 {[%clk 0:01:59.8]}
24. Nf3 {[%clk 0:01:09.6]} 24... Rb8 {[%clk 0:01:58.4]} 25. Qf4 {[%clk
0:01:01.2]} 25... Rb4 {[%clk 0:01:56.9]} 26. Qd2 {[%clk 0:01:00.9]} 26... Qa5
{[%clk 0:01:06.5]} 27. Kg1 {[%clk 0:00:48]} 27... Qa3 {[%clk 0:01:02.9]} 28. Bf1
{[%clk 0:00:44]} 28... Qb2 {[%clk 0:01:00.5]} 29. Qd3 {[%clk 0:00:30.1]} 29...
Qxa2 {[%clk 0:00:56]} 30. Re7 {[%clk 0:00:29.1]} 30... Qxd5 {[%clk 0:00:54.2]}
31. Qe3 {[%clk 0:00:27.4]} 31... Rb7 {[%clk 0:00:53.6]} 32. Nh2 {[%clk
0:00:03.5]} 32... a5 {[%clk 0:00:46.3]} 33. Rxb7 {[%clk 0:00:03.4]} 33... Bxb7
{[%clk 0:00:45.6]} 34. Qa3 {[%clk 0:00:04.3]} 34... Qd2 {[%clk 0:00:43.5]} 35.
Qa4 {[%clk 0:00:02.5]} 35... Qb4 {[%clk 0:00:42.3]} 36. Qd1 {[%clk 0:00:02.2]}
36... d5 {[%clk 0:00:39.2]} 37. Qa1 {[%clk 0:00:01.9]} 37... d4 {[%clk 0:00:39]}
38. Ng4 {[%clk 0:00:01.1]} 38... Nxg4 {[%clk 0:00:38.5]} 39. hxg4 {[%clk
0:00:02]} 39... a4 {[%clk 0:00:37.8]} 40. Qc1 {[%clk 0:00:02.6]} 40... g5 {[%clk
0:00:34.6]} 41. Qd1 {[%clk 0:00:02.2]} 41... Qb3 {[%clk 0:00:18.8]} 42. Qe2
{[%clk 0:00:02.1]} 42... Qd5 {[%clk 0:00:18.2]} 43. Qe7 {[%clk 0:00:01.6]} 43...
a3 {[%clk 0:00:15.8]} 44. Qc7 {[%clk 0:00:01.9]} 44... a2 {[%clk 0:00:14.8]} 45.
Qa5 {[%clk 0:00:02.7]} 45... Bc6 {[%clk 0:00:14.9]} 46. f3 {[%clk 0:00:02.9]}
46... Bd7 {[%clk 0:00:14.1]} 47. Kh2 {[%clk 0:00:03.1]} 47... Be6 {[%clk
0:00:14.5]} 48. Bd3 {[%clk 0:00:03.1]} 48... c4 {[%clk 0:00:14.5]} 49. Qxa2
{[%clk 0:00:02.7]} 49... cxd3 {[%clk 0:00:14.3]} 50. Qd2 {[%clk 0:00:03.6]}
50... Qe5+ {[%clk 0:00:14.7]} 51. Kh3 {[%clk 0:00:04.3]} 51... Qe3 {[%clk
0:00:15.3]} 52. Qa5 {[%clk 0:00:02.5]} 52... d2 {[%clk 0:00:14.9]} 53. Qc5
{[%clk 0:00:01.6]} 53... d1=Q {[%clk 0:00:12.9]} 54. Qd6 {[%clk 0:00:02.5]}
54... Qh1+ {[%clk 0:00:12.5]} 55. Qh2 {[%clk 0:00:03.4]} 55... Qxh2+ {[%clk
0:00:11.8]} 56. Kxh2 {[%clk 0:00:03.7]} 56... d3 {[%clk 0:00:12.5]} 57. Kg3
{[%clk 0:00:04.1]} 57... d2 {[%clk 0:00:12.9]} 58. Kh3 {[%clk 0:00:05]} 58...
d1=Q {[%clk 0:00:12.9]} 59. Kg3 {[%clk 0:00:05.9]} 59... Qf4+ {[%clk 0:00:12.8]}
60. Kh3 {[%clk 0:00:06.8]} 60... Qh1# {[%clk 0:00:12.6]} 0-1

[Event "Late-Titled-Tuesday-Blitz-September-19-2023"]
[Site "Chess.com"]
[Date "2023.09.19"]
[Round "11"]
[White "GMBenjaminBok"]
[Black "Lennis93"]
[Result "1-0"]
[WhiteElo "2957"]
[BlackElo "2740"]
[TimeControl "180+1"]
[EndTime "16:06:16 PDT"]
[Termination "GMBenjaminBok won by checkmate"]

1. d4 {[%clk 0:03:00.9]} 1... Nf6 {[%clk 0:02:59.6]} 2. c4 {[%clk 0:03:00]} 2...
b6 {[%clk 0:03:00]} 3. Nc3 {[%clk 0:02:55.3]} 3... Bb7 {[%clk 0:03:00.3]} 4. Qc2
{[%clk 0:02:55.8]} 4... d5 {[%clk 0:02:58.3]} 5. cxd5 {[%clk 0:02:56.7]} 5...
Nxd5 {[%clk 0:02:58.5]} 6. e4 {[%clk 0:02:57.2]} 6... Nxc3 {[%clk 0:02:58.8]} 7.
bxc3 {[%clk 0:02:58.1]} 7... e6 {[%clk 0:02:58.4]} 8. Nf3 {[%clk 0:02:57.7]}
8... Be7 {[%clk 0:02:58.7]} 9. Bd3 {[%clk 0:02:57.7]} 9... O-O {[%clk
0:02:58.9]} 10. O-O {[%clk 0:02:56.8]} 10... c5 {[%clk 0:02:55.7]} 11. d5 {[%clk
0:02:41.1]} 11... exd5 {[%clk 0:02:36.1]} 12. exd5 {[%clk 0:02:42]} 12... Qxd5
{[%clk 0:02:35.8]} 13. Bxh7+ {[%clk 0:02:39.7]} 13... Kh8 {[%clk 0:02:36.1]} 14.
Rd1 {[%clk 0:02:39.5]} 14... Qh5 {[%clk 0:02:34.8]} 15. Be4 {[%clk 0:02:38.5]}
15... Nc6 {[%clk 0:02:22.8]} 16. Rd7 {[%clk 0:02:05.3]} 16... Rab8 {[%clk
0:02:00.6]} 17. Bf4 {[%clk 0:01:55.7]} 17... Qg4 {[%clk 0:02:00.2]} 18. Rxb7
{[%clk 0:01:43.4]} 18... Qxf4 {[%clk 0:01:33.7]} 19. Bxc6 {[%clk 0:01:41.4]}
19... Rxb7 {[%clk 0:01:31.2]} 20. Bxb7 {[%clk 0:01:42.3]} 20... Bf6 {[%clk
0:01:30]} 21. Rd1 {[%clk 0:01:28.5]} 21... Qc7 {[%clk 0:01:23.4]} 22. Bd5 {[%clk
0:01:24.9]} 22... b5 {[%clk 0:01:22]} 23. c4 {[%clk 0:01:18.6]} 23... b4 {[%clk
0:01:21.4]} 24. g3 {[%clk 0:01:19]} 24... g6 {[%clk 0:01:21.4]} 25. Kg2 {[%clk
0:01:17.6]} 25... Kg7 {[%clk 0:01:21.4]} 26. h4 {[%clk 0:01:17.7]} 26... Rh8
{[%clk 0:01:15.3]} 27. Qe4 {[%clk 0:01:12.9]} 27... a5 {[%clk 0:01:14.6]} 28.
Ng5 {[%clk 0:01:04.1]} 28... Rf8 {[%clk 0:00:52.2]} 29. Bxf7 {[%clk 0:00:47.2]}
29... Bxg5 {[%clk 0:00:52]} 30. Qxg6+ {[%clk 0:00:46.7]} 30... Kh8 {[%clk
0:00:52.3]} 31. hxg5 {[%clk 0:00:44]} 31... Rxf7 {[%clk 0:00:50.6]} 32. Rh1+
{[%clk 0:00:33.4]} 32... Rh7 {[%clk 0:00:50.7]} 33. Rxh7+ {[%clk 0:00:26.1]}
33... Qxh7 {[%clk 0:00:51.6]} 34. Qe8+ {[%clk 0:00:26.2]} 34... Kg7 {[%clk
0:00:30.2]} 35. Qe5+ {[%clk 0:00:24]} 35... Kg8 {[%clk 0:00:30.6]} 36. Qxc5
{[%clk 0:00:20.5]} 36... Qe4+ {[%clk 0:00:30.5]} 37. Kh2 {[%clk 0:00:20.1]}
37... Qc2 {[%clk 0:00:28]} 38. Qxa5 {[%clk 0:00:16.7]} 38... Qxf2+ {[%clk
0:00:27.6]} 39. Kh3 {[%clk 0:00:17]} 39... Qf1+ {[%clk 0:00:27.5]} 40. Kg4
{[%clk 0:00:15.1]} 40... Qxc4+ {[%clk 0:00:28.4]} 41. Kf5 {[%clk 0:00:13.3]}
41... Qd3+ {[%clk 0:00:28.7]} 42. Ke6 {[%clk 0:00:12.3]} 42... Qg6+ {[%clk
0:00:28.3]} 43. Kd7 {[%clk 0:00:12]} 43... Qd3+ {[%clk 0:00:26.9]} 44. Kc8
{[%clk 0:00:11.8]} 44... Qc3+ {[%clk 0:00:23.3]} 45. Qc7 {[%clk 0:00:11.1]}
45... Kf8 {[%clk 0:00:16.2]} 46. g6 {[%clk 0:00:08.7]} 46... Kg8 {[%clk
0:00:15.5]} 47. Kb8 {[%clk 0:00:07.8]} 47... Qf6 {[%clk 0:00:02.1]} 48. Qf7+
{[%clk 0:00:07.3]} 48... Qxf7 {[%clk 0:00:02]} 49. gxf7+ {[%clk 0:00:08.2]}
49... Kxf7 {[%clk 0:00:02.8]} 50. Kc7 {[%clk 0:00:08.5]} 50... b3 {[%clk
0:00:03.7]} 51. axb3 {[%clk 0:00:08.6]} 51... Kg6 {[%clk 0:00:04.3]} 52. b4
{[%clk 0:00:09.1]} 52... Kg5 {[%clk 0:00:05.2]} 53. b5 {[%clk 0:00:10]} 53...
Kg4 {[%clk 0:00:06.1]} 54. b6 {[%clk 0:00:10.7]} 54... Kxg3 {[%clk 0:00:07]} 55.
b7 {[%clk 0:00:11.3]} 55... Kf4 {[%clk 0:00:07.9]} 56. b8=Q {[%clk 0:00:11.8]}
56... Ke4 {[%clk 0:00:08.8]} 57. Qb5 {[%clk 0:00:11.9]} 57... Kd4 {[%clk
0:00:09.7]} 58. Kd6 {[%clk 0:00:12.3]} 58... Ke4 {[%clk 0:00:10]} 59. Qe5+
{[%clk 0:00:12.4]} 59... Kd3 {[%clk 0:00:10.3]} 60. Qf4 {[%clk 0:00:12.7]} 60...
Kc3 {[%clk 0:00:10.6]} 61. Qe4 {[%clk 0:00:13]} 61... Kb3 {[%clk 0:00:10.9]} 62.
Kc5 {[%clk 0:00:13.4]} 62... Kc3 {[%clk 0:00:11.8]} 63. Qe3+ {[%clk 0:00:13.5]}
63... Kc2 {[%clk 0:00:12.1]} 64. Kc4 {[%clk 0:00:13.9]} 64... Kd1 {[%clk
0:00:13]} 65. Qf2 {[%clk 0:00:13.9]} 65... Kc1 {[%clk 0:00:13.2]} 66. Kc3 {[%clk
0:00:14.8]} 66... Kb1 {[%clk 0:00:14.1]} 67. Qb2# {[%clk 0:00:14.6]} 1-0